fUSD/lending_fUSD_20251221
["ID","MTS","AMOUNT","RATE_DAILY","PERIOD"]
[399308608,1766277031820,-412.24222229,0.00012589,2]
[399308609,1766277031830,-250.0,0.00012725,2]
[399308610,1766277031839,-66.09564877,0.00012741,2]
[399308611,1766277031851,-304.24350998,0.00012741,2]
[399308612,1766277031892,-465.02084125,0.00012741,2]
[399308613,1766277031901,-491.21,0.00012929,2]
[399308614,1766277031910,-151.76,0.00013323,2]
[399308615,1766277031919,-152.35,0.00013323,2]
[399308616,1766277031929,-151.92,0.00013323,2]
[399308617,1766277031938,-160.11358205,0.00013473,2]
[399308618,1766277031947,-248.99568031,0.00013491,2]
[399308619,1766277031959,-51.00431969,0.00013491,2]
[399308620,1766277031968,-213.59568003,0.00013491,2]
[399308621,1766277031979,-986.40431997,0.00013491,2]
[399308622,1766277031989,-300.0,0.00013491,2]
[399308623,1766277031999,-215.84790583,0.00013491,2]
[399308626,1766277032035,-84.15209417,0.00013491,2]
[399308628,1766277032044,-150.0,0.00013491,2]
[399308629,1766277032053,-317.65350633,0.00013492,2]
[399308630,1766277032062,-205.9306781,0.00013492,2]
[399308631,1766277032071,-500.0,0.00013492,2]
[399308632,1766277032081,-500.0,0.00013492,2]
[399308633,1766277032091,-500.0,0.00013492,2]
[399308634,1766277032101,-500.0,0.00013492,2]
[399308635,1766277032110,-244.66931104,0.00013492,2]
[399308637,1766277032131,-255.33068896,0.00013492,2]
[399308639,1766277032151,-117.96903842,0.00013492,2]
[399308641,1766277032171,-382.03096158,0.00013492,2]
[399308643,1766277032180,-500.0,0.00013492,2]
[399308644,1766277032190,-500.0,0.00013492,2]
[399308646,1766277032199,-500.0,0.00013492,2]
[399308648,1766277032208,-500.0,0.00013492,2]
[399308652,1766277032218,-500.0,0.00013492,2]
[399308654,1766277032227,-500.0,0.00013492,2]
[399308656,1766277032236,-500.0,0.00013492,2]
[399308658,1766277032245,-333.01205249,0.00013492,2]
[399308660,1766277032255,-500.0,0.00013492,2]
[399308662,1766277032264,-500.0,0.00013492,2]
[399308664,1766277032273,-500.0,0.00013492,2]
[399308666,1766277032283,-500.0,0.00013492,2]
[399308668,1766277032294,-500.0,0.00013492,2]
[399308670,1766277032303,-500.0,0.00013492,2]
[399308672,1766277032312,-500.0,0.00013492,2]
[399308674,1766277032321,-152.22371018,0.00013492,2]
[399308676,1766277032330,-7980.80150464,0.00013493,2]
[399308678,1766277038004,-1827.41417981,0.00013493,2]
[399308679,1766277038016,-791.20191441,0.00013493,2]
[399308682,1766277038027,-3636.82058928,0.00013493,2]
[399308683,1766277038038,-822.94580349,0.00013493,2]
[399308684,1766277038049,-10516.64293417,0.00013493,2]
[399308685,1766277038060,-392.53770318,0.00013493,2]
[399308686,1766277038072,-995.02582332,0.00013493,2]
[399308687,1766277038083,-1238.95791096,0.00013493,2]
[399308699,1766277040008,-395.92311807,0.00013493,2]
[399308700,1766277040023,-1774.97084956,0.00013493,2]
[399308701,1766277040110,-1729.9999,0.00013493,2]
[399308702,1766277040134,-365.60756904,0.00013493,2]
[399308703,1766277040161,-967531.15020007,0.00013493,2]
[399308704,1766277040170,-4959.75932005,0.00013573,2]
[399308705,1766277040180,-1200.0,0.00013586,2]
[399308706,1766277040189,-500.0,0.00013587,2]
[399308707,1766277040199,-500.0,0.00013587,2]
[399308708,1766277040208,-500.0,0.00013587,2]
[399308709,1766277040218,-385.09325978,0.00013587,2]
[399308710,1766277040228,-1713.19468129,0.00013591,2]
[399308711,1766277040237,-1102.684,0.00013593,2]
[399308712,1766277040247,-500.0,0.00013594,2]
[399308713,1766277040256,-156.27,0.00013673,2]
[399308714,1766277040265,-1000.0,0.00013691,2]
[399308715,1766277040275,-511.45159126,0.00013698,2]
[399308716,1766277040284,-500.0,0.00013698,2]
[399308717,1766277040293,-500.0,0.00013698,2]
[399308718,1766277040303,-500.0,0.00013698,2]
[399308719,1766277040312,-500.0,0.00013698,2]
[399308720,1766277040322,-552.95,0.00013698,2]
[399308721,1766277040331,-552.95,0.00013698,2]
[399308722,1766277040340,-552.95,0.00013698,2]
[399308723,1766277040349,-552.95,0.00013698,2]
[399308724,1766277040358,-500.0,0.00013698,2]
[399308725,1766277040367,-244.59651847,0.00013698,2]
[399308726,1766277040376,-500.0,0.00013698,2]
[399308727,1766277040385,-935.33,0.00013698,2]
[399308728,1766277040394,-935.33,0.00013698,2]
[399308729,1766277040403,-935.33,0.00013698,2]
[399308730,1766277040413,-935.33,0.00013698,2]
[399308731,1766277040422,-230.02102299,0.00013699,2]
[399308732,1766277040431,-450.18405684,0.00013699,2]
[399308733,1766277040441,-1765.84,0.000137,2]
[399308734,1766277040451,-1765.84,0.000137,2]
[399308736,1766277040460,-1765.84,0.000137,2]
[399308737,1766277040469,-1765.84,0.000137,2]
[399308738,1766277040479,-1765.84,0.000137,2]
[399308739,1766277040488,-227.8,0.0001379,2]
[399308740,1766277040498,-500.0,0.0001379,2]
[399308741,1766277040510,-500.0,0.0001379,2]
[399308742,1766277040520,-511.85238157,0.0001379,2]
[399308743,1766277040530,-500.0,0.0001379,2]
[399308744,1766277040540,-500.0,0.0001379,2]
[399308745,1766277040549,-500.0,0.0001379,2]
[399308746,1766277040559,-500.0,0.0001379,2]
[399308747,1766277040567,-500.0,0.00013873,2]
[399308748,1766277040577,-500.0,0.00013873,2]
[399308749,1766277040586,-500.0,0.00013873,2]
[399308750,1766277040596,-4959.75932001,0.00013943,2]
[399308751,1766277040607,-1713.19468126,0.00013959,2]
[399308752,1766277040616,-612.0,0.00014036,2]
[399308753,1766277040627,-598.95449494,0.0001417,2]
[399308754,1766277040637,-4959.75932001,0.00014312,2]
[399308755,1766277040647,-1713.19468126,0.00014326,2]
[399308756,1766277040656,-500.0,0.00014421,2]
[399308757,1766277040666,-1262.0,0.00014562,2]
[399308758,1766277040675,-518.0,0.00014562,2]
[399308759,1766277040684,-911.0,0.00014562,2]
[399308760,1766277040696,-1197.0,0.00014562,2]
[399308761,1766277040705,-1326.0,0.00014562,2]
[399308762,1766277040715,-2428.0,0.00014562,2]
[399308763,1766277040723,-255.0,0.00014611,2]
[399308764,1766277040734,-4959.75932001,0.00014682,2]
[399308765,1766277040743,-1713.19468126,0.00014694,2]
[399308766,1766277040752,-420.0,0.00014788,2]
[399308767,1766277040762,-420.0,0.00014788,2]
[399308768,1766277040772,-1680.0,0.0001484,2]
[399308769,1766277040781,-1680.0,0.0001489,2]
[399308770,1766277040790,-500.0,0.00014904,2]
[399308771,1766277040800,-835.70671028,0.00015009,2]
[399308772,1766277040810,-4959.75932001,0.00015052,2]
[399308773,1766277040820,-1713.19468126,0.00015062,2]
[399308774,1766277040830,-578.20924308,0.00015088,2]
[399308775,1766277040840,-160.0,0.00015088,2]
[399308776,1766277040849,-695.39793187,0.00015088,2]
[399308777,1766277040858,-209.40437685,0.00015088,2]
[399308778,1766277040867,-151.0,0.00015088,2]
[399308779,1766277040876,-500.0,0.00015088,2]
[399308780,1766277040886,-151.0,0.00015088,2]
[399308781,1766277040896,-541.13109174,0.00015088,2]
[399308782,1766277040906,-620.0,0.00015088,2]
[399308783,1766277040916,-553.64373807,0.00015088,2]
[399308784,1766277040927,-307.7181838,0.00015088,2]
[399308785,1766277040936,-151.0,0.00015088,2]
[399308786,1766277040945,-668.65185757,0.00015088,2]
[399308787,1766277040954,-300.0,0.00015088,2]
[399308788,1766277040963,-150.0,0.00015288,2]
[399308789,1766277040972,-150.0,0.00015288,2]
[399308790,1766277040983,-150.0,0.00015394,2]
[399308791,1766277040993,-4959.75932001,0.00015421,2]
[399308792,1766277041002,-150.0,0.00015429,2]
[399308793,1766277041011,-1713.19468126,0.00015429,2]
[399308794,1766277041020,-835.70671028,0.00015482,2]
[399308795,1766277041030,-150.0,0.000155,2]
[399308796,1766277041039,-4154.0,0.00015504,2]
[399308797,1766277041048,-250.0,0.0001551,2]
[399308798,1766277041057,-150.0,0.00015571,2]
[399308799,1766277041066,-150.0,0.00015606,2]
[399308800,1766277041077,-574.12855637,0.00015636,2]
[399308801,1766277041086,-150.0,0.00015712,2]
[399308802,1766277041097,-150.0,0.00015712,2]
[399308803,1766277041108,-4959.75932001,0.00015791,2]
[399308804,1766277041118,-1713.19468126,0.00015797,2]
[399308805,1766277041128,-150.0,0.00015818,2]
[399308806,1766277041137,-340.0,0.00015825,2]
[399308807,1766277041146,-150.0,0.00015854,2]
[399308808,1766277041155,-150.0,0.00015925,2]
[399308809,1766277041165,-835.70671028,0.00015955,2]
[399308810,1766277041174,-150.0,0.00015995,2]
[399308811,1766277041184,-847793.21233506,0.00016,4]
[399308812,1766277041193,-150.0,0.00016031,2]
[399308813,1766277041466,-9999.99,0.00016116,2]
[399308814,1766277041475,-150.0,0.00016137,2]
[399308815,1766277041484,-150.0,0.00016137,2]
[399308816,1766277041494,-4959.75932001,0.00016161,2]
[399308817,1766277041503,-1713.19468126,0.00016165,2]
[399308818,1766277041512,-595.37131296,0.00016184,2]
[399308819,1766277041521,-5000.00173956,0.000162,5]
[399308820,1766277041530,-587.0,0.00016209,2]
[399308821,1766277041539,-587.0,0.00016209,2]
[399308822,1766277041548,-150.0,0.00016243,2]
[399308823,1766277041557,-150.0,0.00016279,2]
[399308824,1766277041566,-1453.0,0.0001632,2]
[399308825,1766277041575,-2351.0,0.00016324,2]
[399308826,1766277041584,-150.0,0.00016349,2]
[399308827,1766277041593,-150.0,0.0001642,2]
[399308828,1766277041602,-835.70671028,0.00016427,2]
[399308829,1766277041611,-10191.1,0.00016438,2]
[399308830,1766277041620,-500.0,0.00016438,2]
[399308831,1766277041629,-500.0,0.00016438,2]
[399308832,1766277041638,-500.0,0.00016438,2]
[399308833,1766277041647,-500.0,0.00016438,2]
[399308834,1766277041657,-500.0,0.00016438,2]
[399308835,1766277041666,-500.0,0.00016438,2]
[399308836,1766277041675,-500.0,0.00016438,2]
[399308837,1766277041685,-500.0,0.00016438,2]
[399308838,1766277041697,-500.0,0.00016438,2]
[399308839,1766277041706,-500.0,0.00016438,2]
[399308840,1766277041715,-500.0,0.00016438,2]
[399308841,1766277041725,-500.0,0.00016438,2]
[399308842,1766277041735,-500.0,0.00016438,2]
[399308843,1766277041745,-500.0,0.00016438,2]
[399308844,1766277041754,-500.0,0.00016438,2]
[399308845,1766277041764,-209.72048537,0.00016438,2]
[399308846,1766277041774,-500.0,0.00016438,2]
[399308847,1766277041783,-500.0,0.00016438,2]
[399308848,1766277041792,-500.0,0.00016438,2]
[399308849,1766277041801,-500.0,0.00016438,2]
[399308850,1766277041811,-500.0,0.00016438,2]
[399308851,1766277041820,-500.0,0.00016438,2]
[399308852,1766277041829,-500.0,0.00016438,2]
[399308853,1766277041838,-500.0,0.00016438,2]
[399308854,1766277041847,-500.0,0.00016438,2]
[399308855,1766277041855,-500.0,0.00016438,2]
[399308856,1766277041864,-500.0,0.00016438,2]
[399308857,1766277041875,-500.0,0.00016438,2]
[399308858,1766277041886,-500.0,0.00016438,2]
[399308859,1766277041896,-500.0,0.00016438,2]
[399308860,1766277041906,-500.0,0.00016438,2]
[399308861,1766277041918,-500.0,0.00016438,2]
[399308862,1766277041930,-500.0,0.00016438,2]
[399308863,1766277041939,-500.0,0.00016438,2]
[399308864,1766277041949,-500.0,0.00016438,2]
[399308865,1766277041957,-500.0,0.00016438,2]
[399308866,1766277041966,-500.0,0.00016438,2]
[399308867,1766277041975,-500.0,0.00016438,2]
[399308868,1766277041984,-500.0,0.00016438,2]
[399308869,1766277041993,-500.0,0.00016438,2]
[399308870,1766277042002,-500.0,0.00016438,2]
[399308871,1766277042011,-500.0,0.00016438,2]
[399308872,1766277042020,-500.0,0.00016438,2]
[399308873,1766277042029,-500.0,0.00016438,2]
[399308874,1766277042038,-500.0,0.00016438,2]
[399308875,1766277042047,-500.0,0.00016438,2]
[399308876,1766277042057,-523.30227616,0.00016438,2]
[399308877,1766277042066,-500.0,0.00016438,2]
[399308878,1766277042075,-500.0,0.00016438,2]
[399308879,1766277042084,-500.0,0.00016438,2]
[399308880,1766277042094,-500.0,0.00016438,2]
[399308881,1766277042103,-500.0,0.00016438,2]
[399308882,1766277042113,-500.0,0.00016438,2]
[399308883,1766277042127,-500.0,0.00016438,2]
[399308884,1766277042137,-499.99999999,0.00016438,2]
[399308885,1766277042146,-12236.43,0.00016438,2]
[399308886,1766277042155,-600.0,0.00016438,2]
[399308887,1766277042164,-150.0,0.00016455,2]
[399308888,1766277042175,-151.0,0.00016457,2]
[399308889,1766277042184,-311.1,0.00016457,2]
[399308890,1766277042194,-4959.75932001,0.0001653,2]
[399308891,1766277042203,-1713.19468126,0.00016532,2]
[399308892,1766277042212,-3240.0,0.00016558,2]
[399308893,1766277042221,-150.0,0.00016562,2]
[399308894,1766277042231,-150.0,0.00016562,2]
[399308895,1766277042240,-8377.56446539,0.0001666,2]
[399308896,1766277042249,-150.0,0.00016668,2]
[399308897,1766277042260,-150.0,0.00016703,2]
[399308898,1766277042270,-600.0,0.00016712,2]
[399308899,1766277042280,-167.75,0.00016712,2]
[399308900,1766277042289,-617.40005154,0.00016732,2]
[399308901,1766277042298,-150.0,0.00016774,2]
[399308902,1766277042307,-500.0,0.00016795,2]
[399308903,1766277042317,-150.0,0.00016845,2]
[399308904,1766277042327,-200.0,0.00016863,2]
[399308905,1766277042337,-2000.0,0.00016864,2]
[399308906,1766277042347,-200.0,0.00016864,2]
[399308907,1766277042357,-200.0,0.00016864,2]
[399308908,1766277042367,-150.0,0.0001688,2]
[399308909,1766277042376,-500.0,0.00016882,2]
[399308910,1766277042385,-500.0,0.00016899,2]
[399308911,1766277042396,-552.95,0.00016899,2]
[399308912,1766277042406,-935.33,0.00016899,2]
[399308913,1766277042415,-10000.0,0.000169,2]
[399308914,1766277042424,-835.70671028,0.000169,2]
[399308915,1766277042435,-1713.19468126,0.000169,2]
[399308916,1766277042446,-4959.75932001,0.000169,2]
[399308917,1766277042456,-8427.25637872,0.000169,2]
[399308918,1766277042464,-186.21416739,0.000169,2]
[399308919,1766277042473,-808.6212373,0.000169,2]
[399308920,1766277042483,-160.11358205,0.000169,2]
[399308921,1766277042491,-923.97051826,0.000169,2]
[399308922,1766277042501,-500.0,0.000169,2]
[399308923,1766277042510,-500.0,0.000169,2]
[399308924,1766277042519,-500.0,0.000169,2]
[399308925,1766277042528,-500.0,0.000169,2]
[399308926,1766277042537,-500.0,0.000169,2]
[399308927,1766277042546,-311.61071553,0.000169,2]
[399308928,1766277042556,-1000.0,0.0001697,2]
[399308929,1766277042566,-1000.0,0.0001697,2]
[399308931,1766277042575,-1000.0,0.0001697,2]
[399308932,1766277042584,-500.0,0.0001697,2]
[399308934,1766277042597,-1302.14887411,0.0001697,2]
[399308937,1766277042606,-500.0,0.0001697,2]
[399308938,1766277042615,-500.0,0.0001697,2]
[399308939,1766277042624,-500.0,0.0001697,2]
[399308941,1766277042633,-500.0,0.0001697,2]
[399308943,1766277042642,-1000.0,0.0001697,2]
[399308945,1766277042651,-500.0,0.0001697,2]
[399308947,1766277042661,-500.0,0.00016973,2]
[399308948,1766277042670,-191.38735328,0.00016973,2]
[399308949,1766277042679,-500.0,0.00016973,2]
[399308950,1766277042688,-501.0,0.00016973,2]
[399308951,1766277042700,-600.0,0.00016986,2]
[399308953,1766277042709,-150.00000001,0.00016986,2]
[399308954,1766277042719,-150.0,0.00016986,2]
[399308955,1766277042728,-294.0,0.00016996,2]
[399308956,1766277042738,-1526.74563698,0.00016998,2]
[399308957,1766277042747,-500.0,0.00016999,2]
[399308958,1766277042766,-500.0,0.00016999,2]
[399308959,1766277042783,-500.0,0.00016999,2]
[399308960,1766277042804,-537.03290161,0.00016999,2]
[399308961,1766277042822,-500.0,0.00016999,2]
[399308962,1766277042836,-500.0,0.00016999,2]
[399308963,1766277042855,-500.0,0.00016999,2]
[399308964,1766277042874,-500.0,0.00016999,2]
[399308965,1766277042893,-500.0,0.00016999,2]
[399308966,1766277042912,-500.0,0.00016999,2]
[399308967,1766277042929,-500.0,0.00016999,2]
[399308968,1766277042950,-500.0,0.00016999,2]
[399308969,1766277042967,-500.0,0.00016999,2]
[399308970,1766277042985,-500.0,0.00016999,2]
[399308971,1766277042997,-360.07839417,0.00016999,2]
[399308972,1766277043015,-552.95,0.00016999,2]
[399308973,1766277043028,-552.95,0.00016999,2]
[399308974,1766277043043,-552.95,0.00016999,2]
[399308975,1766277043058,-552.95,0.00016999,2]
[399308976,1766277043072,-552.95,0.00016999,2]
[399308977,1766277043099,-552.95,0.00016999,2]
[399308978,1766277043114,-552.95,0.00016999,2]
[399308979,1766277043129,-552.95,0.00016999,2]
[399308980,1766277043144,-552.95,0.00016999,2]
[399308981,1766277043160,-552.95,0.00016999,2]
[399308982,1766277043176,-552.95,0.00016999,2]
[399308983,1766277043192,-552.95,0.00016999,2]
[399308984,1766277043208,-552.95,0.00016999,2]
[399308985,1766277043226,-552.95,0.00016999,2]
[399308986,1766277043241,-552.95,0.00016999,2]
[399308987,1766277043256,-552.95,0.00016999,2]
[399308988,1766277043278,-552.95,0.00016999,2]
[399308989,1766277043297,-552.95,0.00016999,2]
[399308990,1766277043314,-552.96387419,0.00016999,2]
[399308993,1766277043330,-935.33,0.00016999,2]
[399308994,1766277043346,-935.33,0.00016999,2]
[399308995,1766277043362,-935.33,0.00016999,2]
[399308996,1766277043379,-935.33,0.00016999,2]
[399308997,1766277043395,-935.33,0.00016999,2]
[399308998,1766277043411,-935.33,0.00016999,2]
[399308999,1766277043428,-935.33,0.00016999,2]
[399309000,1766277043447,-935.33,0.00016999,2]
[399309001,1766277043462,-935.33,0.00016999,2]
[399309002,1766277043479,-935.33,0.00016999,2]
[399309003,1766277043494,-935.33,0.00016999,2]
[399309004,1766277043509,-935.33,0.00016999,2]
[399309005,1766277043524,-935.33,0.00016999,2]
[399309006,1766277043538,-935.33,0.00016999,2]
[399309007,1766277043553,-935.33,0.00016999,2]
[399309008,1766277043569,-935.33,0.00016999,2]
[399309009,1766277043584,-935.33,0.00016999,2]
[399309010,1766277043599,-935.33,0.00016999,2]
[399309011,1766277043614,-935.54777372,0.00016999,2]
[399309012,1766277043633,-463208.56237411,0.00017,2]
[399309013,1766277043657,-7182.87468006,0.00017,2]
[399309014,1766277045845,-302.0,0.00013493,2]
[399309015,1766277045866,-357.449822,0.00013493,2]
[399309016,1766277045887,-296.33,0.00013493,2]
[399309172,1766277770316,-1221.4988,0.00012284,2]
[399309173,1766277770341,-251.0,0.00012284,2]
[399309174,1766277770367,-839.39442877,0.00012737,2]
[399309175,1766277770391,-300.0,0.00012753,2]
[399309176,1766277770416,-1000.0,0.00012753,2]
[399309177,1766277770438,-300.0,0.00013392,2]
[399309178,1766277770464,-1200.0,0.00013392,2]
[399309179,1766277770486,-1200.0,0.00013393,2]
[399309180,1766277770512,-2500.0,0.00013393,2]
[399309181,1766277770538,-5010.43677844,0.00013395,2]
[399309182,1766277770562,-906.31476432,0.00013395,2]
[399309183,1766277770587,-151.0,0.00013485,2]
[399309184,1766277770613,-500.0,0.00013485,2]
[399309185,1766277770641,-151.0,0.00013485,2]
[399309186,1766277770665,-500.0,0.00013485,2]
[399309187,1766277770689,-151.0,0.00013485,2]
[399309189,1766277770713,-500.0,0.00013485,2]
[399309190,1766277770736,-151.0,0.00013485,2]
[399309191,1766277770759,-500.0,0.00013485,2]
[399309192,1766277770782,-151.0,0.00013485,2]
[399309193,1766277770805,-500.0,0.00013485,2]
[399309194,1766277770829,-151.0,0.00013485,2]
[399309195,1766277770852,-500.0,0.00013485,2]
[399309196,1766277770875,-500.0,0.00013485,2]
[399309197,1766277770897,-151.0,0.00013485,2]
[399309198,1766277770919,-500.0,0.00013485,2]
[399309199,1766277770941,-500.0,0.00013485,2]
[399309200,1766277770963,-151.0,0.00013485,2]
[399309201,1766277770986,-500.0,0.00013485,2]
[399309202,1766277771008,-151.0,0.00013485,2]
[399309203,1766277771031,-500.0,0.00013485,2]
[399309204,1766277771054,-500.0,0.00013485,2]
[399309205,1766277771081,-151.0,0.00013485,2]
[399309207,1766277771105,-500.0,0.00013485,2]
[399309208,1766277771129,-500.0,0.00013485,2]
[399309209,1766277771153,-151.0,0.00013485,2]
[399309210,1766277771175,-500.0,0.00013485,2]
[399309211,1766277771198,-500.0,0.00013485,2]
[399309212,1766277771220,-500.0,0.00013485,2]
[399309213,1766277771244,-500.0,0.00013485,2]
[399309214,1766277771266,-151.0,0.00013485,2]
[399309215,1766277771290,-500.0,0.00013485,2]
[399309216,1766277771313,-500.0,0.00013485,2]
[399309217,1766277771337,-500.0,0.00013485,2]
[399309218,1766277771361,-200.0,0.00013485,2]
[399309219,1766277771384,-200.0,0.00013485,2]
[399309220,1766277771409,-500.0,0.00013485,2]
[399309221,1766277771432,-151.0,0.0001349,2]
[399309222,1766277771457,-150.0,0.00013491,2]
[399309223,1766277771485,-500.0,0.00013491,2]
[399309224,1766277771507,-576.45817314,0.00013491,2]
[399309226,1766277771534,-500.0,0.00013491,2]
[399309227,1766277771557,-500.0,0.00013491,2]
[399309228,1766277771580,-500.0,0.00013491,2]
[399309229,1766277771602,-500.0,0.00013491,2]
[399309230,1766277771628,-500.0,0.00013491,2]
[399309231,1766277771651,-350.0,0.00013491,2]
[399309232,1766277771674,-500.0,0.00013491,2]
[399309233,1766277771702,-500.0,0.00013491,2]
[399309234,1766277771724,-500.0,0.00013491,2]
[399309235,1766277771750,-500.0,0.00013491,2]
[399309236,1766277771772,-500.0,0.00013491,2]
[399309237,1766277771796,-248.74453118,0.00013491,2]
[399309238,1766277771822,-500.0,0.00013491,2]
[399309239,1766277771845,-500.0,0.00013491,2]
[399309240,1766277771871,-500.0,0.00013491,2]
[399309241,1766277771894,-387.84828165,0.00013491,2]
[399309242,1766277771923,-479.1831168,0.00013491,2]
[399309243,1766277771955,-500.0,0.00013491,2]
[399309244,1766277771982,-500.0,0.00013491,2]
[399309246,1766277772009,-500.0,0.00013491,2]
[399309247,1766277772036,-500.0,0.00013491,2]
[399309248,1766277772062,-500.0,0.00013491,2]
[399309249,1766277772092,-458.81911543,0.00013491,2]
[399309250,1766277772116,-500.0,0.00013491,2]
[399309251,1766277772138,-1194.59810132,0.00013492,3]
[399309252,1766277772164,-1102.684,0.00013492,2]
[399309253,1766277772188,-222.35745443,0.00013492,2]
[399309254,1766277772413,-781337.66245452,0.00013493,2]
[399309285,1766278137892,1723.0,0.000135,5]
[399309287,1766278231791,-242.6672302,0.00013293,2]
[399309288,1766278231801,-150.0,0.00013391,2]
[399309289,1766278231811,-742.90307487,0.00013391,2]
[399309291,1766278231845,-457.09692513,0.00013391,2]
[399309292,1766278231855,-300.0,0.00013391,2]
[399309293,1766278231864,-1200.0,0.00013391,2]
[399309294,1766278231873,-268.58635056,0.00013391,2]
[399309295,1766278231883,-209.76092018,0.00013391,2]
[399309296,1766278231892,-505.46599722,0.00013391,2]
[399309297,1766278232008,-47.77657131,0.00013391,2]
[399309298,1766278232018,-206.67342869,0.00013392,2]
[399309299,1766278232029,-257.034,0.00013392,2]
[399309302,1766278237952,-418146.72864383,0.00013392,2]
[399309317,1766278239927,-5173.46791775,0.00013392,2]
[399309318,1766278239983,-378.05399971,0.00013392,2]
[399309320,1766278243041,-2077.43298617,0.00013392,2]
[399309321,1766278243053,-316.47033406,0.00013392,2]
[399309326,1766278243465,-1238.87598852,0.00013392,2]
[399309333,1766278244897,-572205.26270127,0.00013392,2]
[399309334,1766278244908,-151.78,0.00013393,2]
[399309335,1766278244917,-150.74,0.00013393,2]
[399309336,1766278244926,-151.7,0.00013393,2]
[399309337,1766278244935,-2500.0,0.00013393,2]
[399309338,1766278244945,-200.0,0.00013485,2]
[399309339,1766278244954,-151.0,0.00013485,2]
[399309340,1766278244963,-151.0,0.00013485,2]
[399309341,1766278244974,-151.0,0.00013485,2]
[399309342,1766278244983,-151.0,0.00013485,2]
[399309343,1766278244993,-151.0,0.00013485,2]
[399309344,1766278245002,-151.0,0.00013485,2]
[399309345,1766278245012,-151.0,0.00013485,2]
[399309346,1766278245021,-151.0,0.00013485,2]
[399309347,1766278245030,-151.0,0.00013485,2]
[399309348,1766278245040,-294.08413957,0.00013485,2]
[399309349,1766278245049,-200.0,0.00013485,2]
[399309350,1766278245058,-233.44706167,0.00013485,2]
[399309351,1766278245068,-28340.2321623,0.00013492,2]
[399309352,1766278245077,-1042.8624131,0.00013493,2]
[399309353,1766278245087,-1000.0,0.00013495,2]
[399309354,1766278245096,-500.0,0.00013698,2]
[399309355,1766278245105,-500.0,0.00013698,2]
[399309356,1766278245114,-500.0,0.00013698,2]
[399309357,1766278245124,-500.0,0.00013698,2]
[399309358,1766278245133,-560.93,0.00013698,2]
[399309359,1766278245143,-560.93,0.00013698,2]
[399309360,1766278245152,-560.93,0.00013698,2]
[399309361,1766278245161,-560.93,0.00013698,2]
[399309362,1766278245171,-500.0,0.00013698,2]
[399309363,1766278245180,-500.0,0.00013698,2]
[399309364,1766278245189,-244.59651847,0.00013698,2]
[399309365,1766278245198,-500.0,0.00013698,2]
[399309366,1766278245208,-500.0,0.00013698,2]
[399309367,1766278245218,-956.17,0.00013698,2]
[399309368,1766278245228,-956.17,0.00013698,2]
[399309369,1766278245238,-956.17,0.00013698,2]
[399309370,1766278245247,-956.17,0.00013698,2]
[399309371,1766278245257,-500.0,0.00013698,2]
[399309372,1766278245272,-500.0,0.00013698,2]
[399309373,1766278245284,-500.0,0.00013698,2]
[399309374,1766278245293,-500.0,0.00013698,2]
[399309375,1766278245302,-500.0,0.00013698,2]